fUST/lending_fUST_20250606
["ID","MTS","AMOUNT","RATE_DAILY","PERIOD"]
[364552690,1749139843948,-440.0,0.00019178,2]
[364552691,1749139843959,-440.0,0.00019178,2]
[364552692,1749139843970,-440.0,0.00019178,2]
[364552693,1749139843982,-440.0,0.00019178,2]
[364552694,1749139843992,-430.0,0.00019178,2]
[364552695,1749139844002,-440.0,0.00019178,2]
[364552696,1749139844011,-440.0,0.00019178,2]
[364552697,1749139844021,-440.0,0.00019178,2]
[364552698,1749139844030,-440.0,0.00019178,2]
[364552699,1749139844039,-189.042416,0.00019178,2]
[364552700,1749139844048,-1000.0,0.00019221,2]
[364552701,1749139844057,-844.838696,0.00019314,2]
[364552702,1749139844066,-440.0,0.00019452,2]
[364552703,1749139844077,-420.0,0.00019452,2]
[364552704,1749139844086,-410.0,0.00019452,2]
[364552705,1749139844096,-440.0,0.00019452,2]
[364552706,1749139844105,-440.0,0.00019452,2]
[364552708,1749139844114,-410.0,0.00019452,2]
[364552709,1749139844124,-440.0,0.00019452,2]
[364552710,1749139844134,-440.0,0.00019452,2]
[364552711,1749139844144,-249.47680584,0.00019452,2]
[364552712,1749139844154,-440.0,0.00019452,2]
[364552713,1749139844163,-440.0,0.00019452,2]
[364552714,1749139844173,-440.0,0.00019452,2]
[364552715,1749139844183,-440.0,0.00019452,2]
[364552716,1749139844198,-540.42,0.00019452,2]
[364552717,1749139844208,-440.0,0.00019452,2]
[364552718,1749139844219,-1006.8,0.00019452,2]
[364552719,1749139844228,-847.5,0.00019452,2]
[364552720,1749139844238,-774.18,0.00019452,2]
[364552721,1749139844251,-440.0,0.00019452,2]
[364552722,1749139844262,-440.0,0.00019452,2]
[364552723,1749139844271,-410.0,0.00019452,2]
[364552724,1749139844280,-440.0,0.00019452,2]
[364552725,1749139844289,-532.75401445,0.00019452,2]
[364552726,1749139844298,-440.0,0.00019452,2]
[364552727,1749139844307,-440.0,0.00019452,2]
[364552728,1749139844317,-1168.12,0.00019452,2]
[364552729,1749139844327,-440.0,0.00019452,2]
[364552730,1749139844341,-440.0,0.00019452,2]
[364552731,1749139844354,-440.0,0.00019452,2]
[364552732,1749139844364,-430.0,0.00019452,2]
[364552733,1749139844373,-430.0,0.00019452,2]
[364552734,1749139844383,-430.0,0.00019452,2]
[364552735,1749139844392,-440.0,0.00019452,2]
[364552736,1749139844402,-430.0,0.00019452,2]
[364552737,1749139844412,-440.0,0.00019452,2]
[364552738,1749139844422,-440.0,0.00019452,2]
[364552739,1749139844431,-440.0,0.00019452,2]
[364552740,1749139844442,-440.0,0.00019452,2]
[364552741,1749139844451,-440.0,0.00019452,2]
[364552742,1749139844461,-440.0,0.00019452,2]
[364552743,1749139844472,-430.0,0.00019452,2]
[364552744,1749139844482,-440.0,0.00019452,2]
[364552745,1749139844589,-440.0,0.00019452,2]
[364552746,1749139844599,-15173.56,0.00019452,2]
[364552747,1749139844609,-440.0,0.00019452,2]
[364552748,1749139844618,-440.0,0.00019452,2]
[364552749,1749139844628,-430.0,0.00019452,2]
[364552750,1749139844638,-585.72,0.00019452,2]
[364552751,1749139844647,-623.16,0.00019452,2]
[364552752,1749139844656,-440.0,0.00019452,2]
[364552753,1749139844666,-210.0,0.00019452,2]
[364552754,1749139844676,-440.0,0.00019452,2]
[364552755,1749139844686,-440.0,0.00019452,2]
[364552756,1749139844695,-440.0,0.00019452,2]
[364552757,1749139844704,-440.0,0.00019452,2]
[364552758,1749139844713,-440.0,0.00019452,2]
[364552759,1749139844723,-440.0,0.00019452,2]
[364552760,1749139844732,-440.0,0.00019452,2]
[364552761,1749139844741,-844.838696,0.00019521,2]
[364552762,1749139844751,-153.75203831,0.00019562,2]
[364552763,1749139844760,-160.0,0.00019575,2]
[364552764,1749139844769,-12675.11581177,0.00019575,2]
[364552765,1749139844779,-315.01552021,0.00019575,2]
[364552766,1749139844788,-160.0,0.00019575,2]
[364552767,1749139844798,-229.48950782,0.00019575,2]
[364552768,1749139844808,-160.0,0.00019575,2]
[364552769,1749139844817,-160.0,0.00019575,2]
[364552770,1749139844829,-842.5625,0.00019575,2]
[364552771,1749139844839,-423.7637613,0.00019575,2]
[364552772,1749139844848,-160.0,0.00019575,2]
[364552773,1749139844858,-390.0,0.00019726,2]
[364552774,1749139844868,-440.0,0.00019726,2]
[364552775,1749139844877,-420.0,0.00019726,2]
[364552776,1749139844887,-440.0,0.00019726,2]
[364552777,1749139844896,-440.0,0.00019726,2]
[364552778,1749139844907,-440.0,0.00019726,2]
[364552779,1749139844918,-440.0,0.00019726,2]
[364552780,1749139844929,-440.0,0.00019726,2]
[364552781,1749139844939,-440.0,0.00019726,2]
[364552782,1749139844949,-540.42,0.00019726,2]
[364552783,1749139844958,-440.0,0.00019726,2]
[364552784,1749139844969,-1006.8,0.00019726,2]
[364552785,1749139844979,-847.5,0.00019726,2]
[364552786,1749139844989,-774.18,0.00019726,2]
[364552787,1749139844999,-190.98783582,0.00019726,2]
[364552788,1749139845008,-282.24,0.00019726,2]
[364552789,1749139845019,-440.0,0.00019726,2]
[364552790,1749139845028,-440.0,0.00019726,2]
[364552791,1749139845037,-1168.12,0.00019726,2]
[364552792,1749139845047,-440.0,0.00019726,2]
[364552793,1749139845056,-440.0,0.00019726,2]
[364552794,1749139845066,-440.0,0.00019726,2]
[364552795,1749139845081,-440.0,0.00019726,2]
[364552796,1749139845090,-440.0,0.00019726,2]
[364552797,1749139845100,-440.0,0.00019726,2]
[364552798,1749139845110,-440.0,0.00019726,2]
[364552799,1749139845119,-440.0,0.00019726,2]
[364552800,1749139845129,-440.0,0.00019726,2]
[364552801,1749139845140,-373.85486513,0.00019726,2]
[364552802,1749139845149,-15173.56,0.00019726,2]
[364552803,1749139845159,-440.0,0.00019726,2]
[364552804,1749139845169,-440.0,0.00019726,2]
[364552805,1749139845179,-585.72,0.00019726,2]
[364552806,1749139845189,-623.16,0.00019726,2]
[364552807,1749139845198,-440.0,0.00019726,2]
[364552808,1749139845208,-253.72,0.00019726,2]
[364552809,1749139845218,-440.0,0.00019726,2]
[364552810,1749139845227,-440.0,0.00019726,2]
[364552811,1749139845237,-351.44991544,0.00019726,2]
[364552812,1749139845246,-440.0,0.00019726,2]
[364552813,1749139845255,-151.0,0.00019726,2]
[364552815,1749139845266,-274.14911004,0.00019726,2]
[364552816,1749139845275,-844.838696,0.00019728,2]
[364552817,1749139845284,-852.56622034,0.00019768,2]
[364552818,1749139845294,-345.43,0.000199,2]
[364552819,1749139845304,-844.838696,0.00019934,2]
[364552820,1749139845313,-440.0,0.0002,2]
[364552821,1749139845325,-440.0,0.0002,2]
[364552822,1749139845335,-550.87,0.0002,2]
[364552823,1749139845344,-440.0,0.0002,2]
[364552824,1749139845354,-440.0,0.0002,2]
[364552825,1749139845364,-440.0,0.0002,2]
[364552826,1749139845373,-390.0,0.0002,2]
[364552827,1749139845383,-540.42,0.0002,2]
[364552828,1749139845392,-440.0,0.0002,2]
[364552829,1749139845401,-1006.8,0.0002,2]
[364552830,1749139845411,-847.5,0.0002,2]
[364552831,1749139845421,-774.18,0.0002,2]
[364552832,1749139845431,-440.0,0.0002,2]
[364552833,1749139845440,-440.0,0.0002,2]
[364552834,1749139845450,-1168.12,0.0002,2]
[364552835,1749139845460,-440.0,0.0002,2]
[364552836,1749139845469,-440.0,0.0002,2]
[364552837,1749139845478,-440.0,0.0002,2]
[364552838,1749139845488,-440.0,0.0002,2]
[364552839,1749139845498,-583.67,0.0002,2]
[364552840,1749139845508,-440.0,0.0002,2]
[364552841,1749139845517,-365.71113709,0.0002,2]
[364552842,1749139845527,-440.0,0.0002,2]
[364552843,1749139845536,-15173.56,0.0002,2]
[364552844,1749139845546,-440.0,0.0002,2]
[364552845,1749139845556,-440.0,0.0002,2]
[364552846,1749139845565,-585.72,0.0002,2]
[364552847,1749139845576,-623.16,0.0002,2]
[364552849,1749139845586,-440.0,0.0002,2]
[364552851,1749139845600,-151.0,0.0002,2]
[364552852,1749139845616,-678.484147,0.0002,2]
[364552853,1749139845630,-151.0,0.0002,2]
[364552855,1749139845643,-678.484147,0.0002,2]
[364552856,1749139845655,-440.0,0.0002,2]
[364552858,1749139845668,-440.0,0.0002,2]
[364552860,1749139845680,-485.79,0.0002,2]
[364552861,1749139845694,-151.0,0.0002,2]
[364552862,1749139845707,-500.0,0.00020136,2]
[364552863,1749139845720,-281.16332978,0.00020136,2]
[364552864,1749139845734,-500.0,0.00020136,2]
[364552865,1749139845748,-500.0,0.00020136,2]
[364552866,1749139845760,-500.0,0.00020136,2]
[364552867,1749139845772,-151.0,0.00020136,2]
[364552868,1749139845784,-152.52492943,0.00020136,2]
[364552869,1749139845796,-152.07817798,0.00020136,2]
[364552870,1749139845809,-500.0,0.00020136,2]
[364552871,1749139845821,-844.838696,0.00020141,2]
[364552872,1749139845833,-500.0,0.00020163,2]
[364552873,1749139845844,-574.737208,0.00020163,2]
[364552875,1749139845857,-500.83773021,0.00020163,2]
[364552877,1749139845869,-500.0,0.00020163,2]
[364552878,1749139845882,-151.0,0.00020163,2]
[364552879,1749139845896,-500.0,0.00020163,2]
[364552880,1749139845908,-500.0,0.00020191,2]
[364552881,1749139845922,-500.0,0.00020191,2]
[364552882,1749139845937,-201.36615727,0.00020191,2]
[364552883,1749139845951,-151.80939436,0.00020191,2]
[364552884,1749139845963,-500.0,0.00020218,2]
[364552885,1749139845974,-500.0,0.00020218,2]
[364552886,1749139845984,-500.0,0.00020246,2]
[364552887,1749139845996,-500.0,0.00020246,2]
[364552888,1749139846011,-500.0,0.00020272,2]
[364552889,1749139846024,-500.0,0.00020272,2]
[364552890,1749139846036,-500.0,0.00020273,2]
[364552891,1749139846047,-500.0,0.00020273,2]
[364552892,1749139846058,-331.13,0.00020273,2]
[364552893,1749139846071,-440.0,0.00020273,2]
[364552894,1749139846083,-167.8728,0.00020273,2]
[364552895,1749139846095,-440.0,0.00020273,2]
[364552896,1749139846105,-281.97844404,0.00020273,2]
[364552897,1749139846116,-540.42,0.00020273,2]
[364552898,1749139846127,-440.0,0.00020273,2]
[364552899,1749139846139,-1006.8,0.00020273,2]
[364552900,1749139846150,-847.5,0.00020273,2]
[364552901,1749139846161,-774.18,0.00020273,2]
[364552902,1749139846172,-440.0,0.00020273,2]
[364552903,1749139846183,-440.0,0.00020273,2]
[364552904,1749139846194,-1168.12,0.00020273,2]
[364552905,1749139846205,-440.0,0.00020273,2]
[364552906,1749139846216,-440.0,0.00020273,2]
[364552907,1749139846227,-440.0,0.00020273,2]
[364552908,1749139846238,-440.0,0.00020273,2]
[364552909,1749139846249,-440.0,0.00020273,2]
[364552910,1749139846261,-15173.56,0.00020273,2]
[364552911,1749139846272,-440.0,0.00020273,2]
[364552912,1749139846284,-440.0,0.00020273,2]
[364552913,1749139846296,-585.72,0.00020273,2]
[364552914,1749139846310,-623.16,0.00020273,2]
[364552915,1749139846321,-440.0,0.00020273,2]
[364552916,1749139846333,-440.0,0.00020273,2]
[364552917,1749139846345,-451.35685803,0.00020273,2]
[364552918,1749139846357,-500.0,0.000203,2]
[364552919,1749139846368,-500.0,0.000203,2]
[364552920,1749139846380,-924.63,0.00020313,2]
[364552921,1749139846392,-500.0,0.00020328,2]
[364552922,1749139846404,-500.0,0.00020328,2]
[364552923,1749139846415,-844.838696,0.00020348,3]
[364552924,1749139846426,-500.0,0.00020355,2]
[364552925,1749139846437,-500.0,0.00020355,2]
[364552926,1749139846449,-277.75440353,0.00020383,2]
[364552927,1749139846461,-500.0,0.00020383,2]
[364552928,1749139846473,-500.0,0.0002041,2]
[364552929,1749139846484,-500.0,0.00020437,2]
[364552930,1749139846496,-500.0,0.00020465,2]
[364552931,1749139846507,-500.0,0.00020488,2]
[364552932,1749139846519,-500.0,0.00020492,2]
[364552933,1749139846531,-500.0,0.0002052,2]
[364552934,1749139846542,-151.0,0.00020547,2]
[364552935,1749139846553,-294.0,0.00020547,7]
[364552936,1749139846565,-440.0,0.00020547,2]
[364552937,1749139846578,-151.0,0.00020547,2]
[364552938,1749139846590,-151.0,0.00020547,2]
[364552939,1749139846602,-500.0,0.00020547,2]
[364552940,1749139846614,-158.24,0.00020547,2]
[364552941,1749139846626,-540.42,0.00020547,2]
[364552942,1749139846638,-440.0,0.00020547,2]
[364552943,1749139846649,-1006.8,0.00020547,2]
[364552944,1749139846659,-847.5,0.00020547,2]
[364552945,1749139846668,-774.18,0.00020547,2]
[364552946,1749139846678,-440.0,0.00020547,2]
[364552947,1749139846687,-440.0,0.00020547,2]
[364552948,1749139846697,-1168.12,0.00020547,2]
[364552949,1749139846706,-440.0,0.00020547,2]
[364552950,1749139846716,-440.0,0.00020547,2]
[364552951,1749139846726,-440.0,0.00020547,2]
[364552952,1749139846735,-397.745159,0.00020547,2]
[364552953,1749139846744,-397.745159,0.00020547,2]
[364552954,1749139846753,-440.0,0.00020547,2]
[364552955,1749139846763,-440.0,0.00020547,2]
[364552956,1749139846926,-15173.56,0.00020547,2]
[364552957,1749139846937,-440.0,0.00020547,2]
[364552958,1749139846947,-440.0,0.00020547,2]
[364552959,1749139846957,-585.72,0.00020547,2]
[364552960,1749139846967,-623.16,0.00020547,2]
[364552961,1749139846976,-440.0,0.00020547,2]
[364552962,1749139846985,-351.87,0.00020547,2]
[364552963,1749139846996,-165.423829,0.00020548,2]
[364552964,1749139847007,-844.838696,0.00020555,3]
[364552965,1749139847017,-1713.3,0.000206,2]
[364552966,1749139847026,-26984.18,0.000206,2]
[364552967,1749139847035,-1205.9,0.000206,2]
[364552968,1749139847045,-151.0,0.000206,2]
[364552969,1749139847055,-151.0,0.000206,2]
[364552970,1749139847065,-844.838696,0.00020762,3]
[364552971,1749139847074,-440.0,0.00020821,2]
[364552972,1749139847083,-151.0,0.00020821,2]
[364552973,1749139847092,-173.656597,0.00020821,2]
[364552974,1749139847101,-173.656597,0.00020821,2]
[364552975,1749139847111,-540.42,0.00020821,2]
[364552976,1749139847120,-440.0,0.00020821,2]
[364552977,1749139847129,-1006.8,0.00020821,2]
[364552978,1749139847139,-847.5,0.00020821,2]
[364552979,1749139847149,-774.18,0.00020821,2]
[364552980,1749139847158,-440.0,0.00020821,2]
[364552981,1749139847167,-440.0,0.00020821,2]
[364552982,1749139847176,-1168.12,0.00020821,2]
[364552983,1749139847186,-440.0,0.00020821,2]
[364552984,1749139847196,-440.0,0.00020821,2]
[364552985,1749139847205,-440.0,0.00020821,2]
[364552986,1749139847215,-440.0,0.00020821,2]
[364552987,1749139847225,-440.0,0.00020821,2]
[364552988,1749139847234,-15173.56,0.00020821,2]
[364552989,1749139847243,-440.0,0.00020821,2]
[364552990,1749139847255,-440.0,0.00020821,2]
[364552991,1749139847264,-585.72,0.00020821,2]
[364552992,1749139847273,-623.16,0.00020821,2]
[364552993,1749139847283,-440.0,0.00020821,2]
[364552994,1749139847292,-844.838696,0.00020969,4]
[364552995,1749139847302,-248.32,0.00021095,2]
[364552996,1749139847311,-151.0,0.00021095,2]
[364552997,1749139847321,-540.42,0.00021095,2]
[364552998,1749139847331,-440.0,0.00021095,2]
[364552999,1749139847341,-1006.8,0.00021095,2]
[364553000,1749139847351,-847.5,0.00021095,2]
[364553001,1749139847360,-774.18,0.00021095,2]
[364553002,1749139847370,-440.0,0.00021095,2]
[364553003,1749139847379,-440.0,0.00021095,2]
[364553004,1749139847389,-1168.12,0.00021095,2]
[364553005,1749139847398,-440.0,0.00021095,2]
[364553006,1749139847407,-440.0,0.00021095,2]
[364553007,1749139847417,-440.0,0.00021095,2]
[364553008,1749139847427,-467.1634437,0.00021095,2]
[364553009,1749139847436,-553.35,0.00021095,2]
[364553010,1749139847445,-15173.56,0.00021095,2]
[364553011,1749139847455,-440.0,0.00021095,2]
[364553012,1749139847464,-161.35,0.00021095,2]
[364553013,1749139847474,-585.72,0.00021095,2]
[364553014,1749139847483,-623.16,0.00021095,2]
[364553015,1749139847493,-440.0,0.00021095,2]
[364553016,1749139847502,-151.0,0.00021095,2]
[364553017,1749139847512,-244.011576,0.00021095,2]
[364553018,1749139847521,-151.0,0.00021095,2]
[364553019,1749139847532,-844.838696,0.00021176,4]
[364553020,1749139847541,-289.760938,0.00021369,2]
[364553021,1749139847550,-289.760938,0.00021369,2]
[364553022,1749139847560,-151.0,0.00021369,2]
[364553023,1749139847570,-151.0,0.00021369,2]
[364553024,1749139847580,-540.42,0.00021369,2]
[364553025,1749139847589,-440.0,0.00021369,2]
[364553026,1749139847600,-1006.8,0.00021369,2]
[364553027,1749139847610,-847.5,0.00021369,2]
[364553028,1749139847619,-774.18,0.00021369,2]
[364553029,1749139847628,-440.0,0.00021369,2]
[364553030,1749139847638,-440.0,0.00021369,2]
[364553031,1749139847648,-1168.12,0.00021369,2]
[364553032,1749139847657,-440.0,0.00021369,2]
[364553033,1749139847667,-440.0,0.00021369,2]
[364553034,1749139847676,-440.0,0.00021369,2]
[364553035,1749139847686,-15173.56,0.00021369,2]
[364553036,1749139847696,-440.0,0.00021369,2]
[364553037,1749139847705,-585.72,0.00021369,2]
[364553038,1749139847714,-623.16,0.00021369,2]
[364553039,1749139847724,-440.0,0.00021369,2]
[364553040,1749139847733,-678.484147,0.00021369,2]
[364553041,1749139847742,-678.484147,0.00021369,2]
[364553042,1749139847752,-844.838696,0.00021383,5]
[364553043,1749139847762,-500.0,0.0002155,2]
[364553044,1749139847771,-844.838696,0.0002159,5]
[364553045,1749139847781,-540.42,0.00021643,2]
[364553046,1749139847790,-365.01758916,0.00021643,2]
[364553047,1749139847799,-1006.8,0.00021643,2]
[364553048,1749139847808,-847.5,0.00021643,2]
[364553049,1749139847817,-774.18,0.00021643,2]
[364553050,1749139847827,-440.0,0.00021643,2]
[364553051,1749139847838,-440.0,0.00021643,2]
[364553052,1749139847847,-1168.12,0.00021643,2]
[364553053,1749139847856,-440.0,0.00021643,2]
[364553054,1749139847865,-440.0,0.00021643,2]
[364553055,1749139847874,-440.0,0.00021643,2]
[364553056,1749139847883,-15173.56,0.00021643,2]
[364553057,1749139847892,-440.0,0.00021643,2]
[364553058,1749139847902,-585.72,0.00021643,2]
[364553059,1749139847911,-623.16,0.00021643,2]
[364553060,1749139847923,-440.0,0.00021643,2]
[364553061,1749139847934,-646.94690119,0.00021792,2]
[364553062,1749139847943,-844.838696,0.00021797,6]
[364553063,1749139847953,-1232.84,0.00021875,2]
[364553064,1749139847963,-151.82357693,0.00021917,2]
[364553065,1749139847972,-400.0,0.00021917,2]
[364553066,1749139847982,-470.0,0.00021917,2]
[364553067,1749139847991,-500.0,0.00021917,2]
[364553068,1749139848003,-540.42,0.00021917,2]
[364553069,1749139848012,-1006.8,0.00021917,2]
[364553070,1749139848022,-847.5,0.00021917,2]
[364553071,1749139848031,-774.18,0.00021917,2]
[364553072,1749139848041,-440.0,0.00021917,2]
[364553073,1749139848050,-440.0,0.00021917,2]
[364553074,1749139848060,-1168.12,0.00021917,2]
[364553075,1749139848069,-440.0,0.00021917,2]
[364553076,1749139848079,-440.0,0.00021917,2]
[364553077,1749139848089,-440.0,0.00021917,2]
[364553078,1749139848098,-15173.56,0.00021917,2]
[364553079,1749139848108,-440.0,0.00021917,2]
[364553080,1749139848117,-585.72,0.00021917,2]
[364553081,1749139848126,-623.16,0.00021917,2]
[364553082,1749139848136,-462.85892041,0.00021917,2]
[364553083,1749139848146,-162.1751,0.00021918,2]
[364553084,1749139848155,-162.1751,0.00021918,2]
[364553085,1749139848165,-162.1751,0.00021918,2]
[364553086,1749139848174,-162.1751,0.00021918,2]
[364553087,1749139848182,-2126.51,0.00022,2]
[364553088,1749139848191,-397.745159,0.00022,7]
[364553089,1749139848201,-397.745159,0.00022,7]
[364553090,1749139848210,-844.838696,0.00022003,6]
[364553091,1749139848219,-1000.0,0.00022098,2]
[364553092,1749139848228,-152.34019882,0.000221,2]
[364553093,1749139848237,-207.4,0.00022107,2]
[364553094,1749139848246,-151.0,0.0002211,7]
[364553095,1749139848256,-540.42,0.00022191,2]
[364553096,1749139848265,-1006.8,0.00022191,2]
[364553097,1749139848274,-847.5,0.00022191,2]
[364553098,1749139848283,-774.18,0.00022191,2]
[364553099,1749139848294,-440.0,0.00022191,2]
[364553100,1749139848304,-440.0,0.00022191,2]
[364553101,1749139848314,-1168.12,0.00022191,2]
[364553102,1749139848323,-440.0,0.00022191,2]
[364553103,1749139848334,-440.0,0.00022191,2]
[364553104,1749139848344,-440.0,0.00022191,2]
[364553105,1749139848353,-15173.56,0.00022191,2]
[364553106,1749139848363,-582.95,0.00022191,2]
[364553107,1749139848373,-585.72,0.00022191,2]
[364553108,1749139848383,-623.16,0.00022191,2]
[364553109,1749139848393,-1713.3,0.000222,7]
[364553110,1749139848403,-9504.78836109,0.000222,2]
[364553111,1749139848690,-446.84938394,0.00020272,2]
[364553112,1749139848700,-552.82061606,0.000222,2]
[364553113,1749139848712,-337.90960781,0.000222,2]
[364553114,1749139848839,-500.0,0.00020272,2]
[364553115,1749139848850,-195.44138137,0.00020272,2]
[364553116,1749139849053,-304.55861863,0.00020272,2]
[364553117,1749139849063,-500.0,0.00020272,2]
[364553118,1749139849073,-500.0,0.00020272,2]
[364553119,1749139849087,-407.36079904,0.00020272,2]
[364553120,1749139849096,-500.0,0.00020272,2]
[364553121,1749139849106,-16588.66141504,0.000222,2]
[364553122,1749139849115,-1205.9,0.000222,7]
[364553123,1749139849126,-297.237379,0.000222,7]
[364553124,1749139849135,-151.0,0.000222,7]
[364553125,1749139849145,-173.656597,0.000222,7]
[364553126,1749139849155,-173.656597,0.000222,7]
[364553127,1749139849165,-162.1751,0.000222,7]
[364553128,1749139849175,-162.1751,0.000222,7]
[364553129,1749139849185,-678.484147,0.000222,7]
[364553130,1749139849195,-678.484147,0.000222,7]
[364553131,1749139849204,-844.838696,0.0002221,6]
[364553132,1749139849213,-397.745159,0.00022395,7]
[364553133,1749139849223,-397.745159,0.00022395,7]
[364553134,1749139849232,-154.155679,0.00022395,7]
[364553135,1749139849242,-151.0,0.00022395,7]
[364553136,1749139849251,-500.0,0.000224,2]
[364553137,1749139849261,-500.0,0.000224,2]
[364553138,1749139849271,-600.0,0.000224,2]
[364553139,1749139849280,-844.838696,0.00022417,7]
[364553140,1749139849290,-151.0,0.00022465,7]
[364553141,1749139849299,-304.91285601,0.00022465,2]
[364553142,1749139849366,-315.17879026,0.00018356,2]
[364553143,1749139849398,-124.82120974,0.00018356,2]
[364553144,1749139849409,-440.0,0.0001863,2]
[364553145,1749139849418,-235.50714399,0.00022465,2]
[364553146,1749139849428,-1006.8,0.00022465,2]
[364553147,1749139849438,-847.5,0.00022465,2]
[364553148,1749139849448,-774.18,0.00022465,2]
[364553149,1749139849458,-440.0,0.00022465,2]
[364553150,1749139849467,-440.0,0.00022465,2]
[364553151,1749139849477,-1168.12,0.00022465,2]
[364553152,1749139849487,-440.0,0.00022465,2]
[364553153,1749139849496,-440.0,0.00022465,2]
[364553154,1749139849506,-440.0,0.00022465,2]
[364553155,1749139849516,-15173.56,0.00022465,2]
[364553156,1749139849527,-585.72,0.00022465,2]
[364553157,1749139849537,-623.16,0.00022465,2]
[364553158,1749139849547,-306.0,0.00022603,2]
[364553159,1749139849556,-306.749278,0.00022603,2]
[364553160,1749139849566,-844.838696,0.00022624,7]
[364553161,1749139849576,-1500.0,0.00022646,2]
[364553162,1749139849586,-500.0,0.0002268,2]
[364553163,1749139849596,-962.0,0.00022702,2]
[364553164,1749139849606,-2225.0,0.00022702,2]
[364553165,1749139849616,-709.0,0.00022702,2]
[364553166,1749139849625,-540.42,0.00022739,2]
[364553167,1749139849635,-1006.8,0.00022739,2]
[364553168,1749139849645,-847.5,0.00022739,2]
[364553169,1749139849655,-774.18,0.00022739,2]
[364553170,1749139849665,-440.0,0.00022739,2]
[364553171,1749139849791,-340.91,0.00022739,2]
[364553172,1749139849801,-1168.12,0.00022739,2]
[364553173,1749139849811,-311.92258664,0.00022739,2]
[364553174,1749139849821,-287.40495317,0.00022739,2]
[364553175,1749139849831,-440.0,0.00022739,2]
[364553176,1749139849840,-15173.56,0.00022739,2]
[364553177,1749139849851,-585.72,0.00022739,2]
[364553178,1749139849860,-623.16,0.00022739,2]
[364553179,1749139849870,-789.263818,0.00022821,3]
[364553180,1749139849879,-844.838696,0.00022831,8]
[364553181,1749139849889,-200.0,0.000229,2]
[364553182,1749139849899,-1000.0,0.00022948,2]
[364553183,1749139849907,-1000.0,0.00022948,2]
[364553184,1749139849917,-926.01727698,0.00022948,2]
[364553185,1749139849941,-440.0,0.00018904,2]
[364553186,1749139849950,-273.98272302,0.00022948,2]
[364553187,1749139849960,-5000.0,0.00023,2]
[364553188,1749139849970,-1419.81,0.00023,2]
[364553189,1749139849979,-328.47578549,0.00023,2]
[364553190,1749139849989,-289.760938,0.00023013,7]
[364553191,1749139850000,-289.760938,0.00023013,7]
[364553192,1749139850009,-151.0,0.00023013,7]
[364553193,1749139850018,-151.0,0.00023013,7]
[364553194,1749139850027,-540.42,0.00023013,2]
[364553195,1749139850037,-1006.8,0.00023013,2]
[364553196,1749139850046,-847.5,0.00023013,2]
[364553197,1749139850056,-774.18,0.00023013,2]
[364553198,1749139850065,-440.0,0.00023013,2]